bitfinex-derivatives/quotes_BTCF0:USTF0_20241110
["timestamp","ask_amount","ask_price","bid_price","bid_amount"]
[1731267270629,0.062157,80365.0,80362.0,0.0258919]
[1731267270928,0.062157,80365.0,80360.0,0.11784]
[1731267271126,0.36152,80368.0,80358.0,0.092]
[1731267271426,0.3608,80361.0,80358.0,0.0254518]
[1731267271624,0.3608,80361.0,80357.0,0.0834]
[1731267271625,0.06216,80360.0,80357.0,0.0834]
[1731267273323,0.06216,80360.0,80357.0,0.10837061]
[1731267273826,0.062162,80358.0,80357.0,0.0834]
[1731267276832,0.77230227,80358.0,80349.0,0.00013026]
[1731267277030,0.422968,80350.0,80349.0,0.00013026]
[1731267278134,0.422968,80350.0,80349.0,0.02614825]
[1731267278320,0.422968,80350.0,80349.0,0.00013026]
[1731267279430,0.422968,80350.0,80349.0,0.02576114]
[1731267279638,0.422968,80350.0,80349.0,0.00013026]
[1731267288435,0.3608,80350.0,80349.0,0.00013026]
[1731267288628,0.3608,80350.0,80349.0,0.18602106]
[1731267288832,0.3608,80356.0,80349.0,0.24819006]
[1731267289536,0.3608,80356.0,80349.0,0.18602106]
[1731267289733,0.11882415,80353.0,80349.0,0.00013026]
[1731267289937,0.062168,80350.0,80349.0,0.00013026]
[1731267292546,0.36144,80356.0,80349.0,0.00013026]
[1731267292836,0.3608,80356.0,80351.0,0.062167]
[1731267293029,0.3608,80356.0,80352.0,0.062167]
[1731267293238,0.3608,80356.0,80349.0,0.00013026]
[1731267293636,0.3608,80356.0,80350.0,0.18683961]
[1731267295038,0.062166,80353.0,80350.0,0.18683961]
[1731267295736,0.3608,80356.0,80350.0,0.18683961]
[1731267296132,0.3608,80356.0,80351.0,0.062167]
[1731267296941,0.3608,80356.0,80346.0,0.01927518]
[1731267297135,0.3608,80356.0,80347.0,0.06217]
[1731267297333,0.3608,80356.0,80350.0,0.18573287]
[1731267297540,0.3608,80356.0,80350.0,0.062168]
[1731267297732,0.3608,80356.0,80351.0,0.18561113]
[1731267297945,0.3608,80356.0,80351.0,0.18572006]
[1731267301948,0.3608,80356.0,80352.0,0.062166]
[1731267302149,0.3608,80356.0,80355.0,0.062164]
[1731267302542,0.062155,80367.0,80355.0,0.18655081]
[1731267302741,0.062156,80366.0,80358.0,0.062162]
[1731267302957,0.0483,80370.0,80357.0,0.3608]
[1731267302958,0.11882415,80367.0,80357.0,0.3608]
[1731267303248,0.3608,80364.0,80356.0,0.133]
[1731267303840,0.11882415,80361.0,80351.0,0.00010893]
[1731267304051,0.062166,80353.0,80351.0,0.02497832]
[1731267304437,0.11882415,80355.0,80351.0,0.02497832]
[1731267305054,0.36144,80356.0,80351.0,0.02497832]
[1731267305248,0.3608,80356.0,80351.0,0.02497832]
[1731267305440,0.3608,80356.0,80352.0,0.062167]
[1731267305750,0.3608,80356.0,80351.0,0.02497832]
[1731267305944,0.3608,80356.0,80354.0,0.062165]
[1731267306345,0.3608,80356.0,80355.0,0.18763639]
[1731267307956,0.3608,80356.0,80351.0,0.02497832]
[1731267308149,0.3608,80356.0,80352.0,0.062166]
[1731267308860,0.3608,80356.0,80351.0,0.02497832]
[1731267309061,0.3608,80356.0,80353.0,0.18634536]
[1731267309255,0.3608,80356.0,80351.0,0.02497832]
[1731267309256,0.3608,80356.0,80354.0,0.062165]
[1731267309558,0.3608,80356.0,80354.0,0.24949115]
[1731267309748,0.3608,80356.0,80354.0,0.062165]
[1731267310152,0.3608,80360.0,80355.0,0.18732615]
[1731267310856,0.062161,80359.0,80355.0,0.18732615]
[1731267311454,0.36144,80360.0,80355.0,0.18732615]
[1731267311647,0.422961,80360.0,80355.0,0.18732615]
[1731267315054,0.062162,80359.0,80355.0,0.18732615]
[1731267315864,0.062163,80357.0,80351.0,0.02497832]
[1731267316561,0.36144,80360.0,80351.0,0.02497832]
[1731267316754,0.062165,80355.0,80351.0,0.02497832]
[1731267318652,0.36144,80360.0,80351.0,0.02497832]
[1731267318953,0.3608,80360.0,80351.0,0.02497832]
[1731267319359,0.422967,80352.0,80351.0,0.02497832]
[1731267320157,0.46114765,80352.0,80351.0,0.02497832]
[1731267320357,0.46114765,80352.0,80351.0,0.00010893]
[1731267320358,0.422967,80352.0,80351.0,0.00010893]
[1731267322263,0.062178,80338.0,80328.0,0.03722018]
[1731267322456,0.16252415,80337.0,80319.0,0.0058]
[1731267322660,0.47962415,80325.0,80311.0,0.36228]
[1731267322859,0.062188,80324.0,80316.0,0.062194]
[1731267323052,0.062188,80324.0,80316.0,0.24789696]
[1731267323267,0.00014418,80323.0,80316.0,0.0623206]
[1731267326361,0.00014418,80323.0,80321.0,0.06219]
[1731267326761,0.00014418,80323.0,80322.0,0.1864307]
[1731267331266,0.00014418,80323.0,80322.0,0.21155794]
[1731267334569,0.00014418,80323.0,80322.0,0.02512724]
[1731267334870,0.00014418,80323.0,80316.0,0.4245606]
[1731267335059,0.00014418,80323.0,80316.0,0.0623206]
[1731267335263,0.00014418,80323.0,80317.0,0.18581184]
[1731267337276,0.00014418,80323.0,80320.0,0.12052986]
[1731267337569,0.00014418,80323.0,80322.0,0.06219]
[1731267337960,0.00014418,80323.0,80322.0,0.18766164]
[1731267338164,0.00014418,80323.0,80322.0,0.18936735]
[1731267341069,0.73442418,80323.0,80322.0,0.00170571]
[1731267341274,0.37352,80322.0,80304.0,0.0058]
[1731267341468,0.54182315,80310.0,80298.0,0.0058]
[1731267341776,0.54182315,80310.0,80291.0,0.1422]
[1731267342075,0.062207,80300.0,80291.0,0.0058]
[1731267342278,0.47962415,80292.0,80280.0,0.05103634]
[1731267342580,0.11882415,80286.0,80280.0,0.04955634]
[1731267342782,0.11882415,80286.0,80285.0,0.06334141]
[1731267342975,0.11882415,80286.0,80285.0,0.25119899]
[1731267343279,0.11882415,80286.0,80285.0,0.22513357]
[1731267343877,0.11882415,80286.0,80285.0,0.03727599]
[1731267344381,0.14379406,80286.0,80285.0,0.03727599]
[1731267344589,0.14379406,80286.0,80285.0,0.00010873]
[1731267347272,0.423737,80287.0,80285.0,0.00010873]
[1731267347473,0.54184115,80287.0,80285.0,0.00010873]
[1731267352981,0.062229,80271.0,80270.0,0.0058]
[1731267353280,0.423029,80271.0,80258.0,0.062239]
[1731267353679,0.423029,80271.0,80257.0,0.52216]
[1731267353680,0.423029,80271.0,80261.0,0.18715126]
[1731267353872,0.3608,80271.0,80261.0,0.18715126]
[1731267354180,0.087674,80266.0,80260.0,0.03204554]
[1731267354385,9.318e-05,80270.0,80260.0,0.03204554]
[1731267354684,0.062235,80264.0,80260.0,0.03204554]
[1731267354882,9.318e-05,80270.0,80260.0,0.03204554]
[1731267355385,0.062232,80268.0,80260.0,0.03204554]
[1731267355582,9.318e-05,80270.0,80260.0,0.00013457]
[1731267355776,0.3608,80264.0,80260.0,0.00013457]
[1731267357884,0.062237,80261.0,80260.0,0.00013457]
[1731267358089,0.36156,80264.0,80260.0,0.00013457]
[1731267358277,0.3608,80264.0,80260.0,0.00013457]
[1731267359589,0.062234,80265.0,80260.0,0.00013457]
[1731267359884,0.3608,80262.0,80260.0,0.00013457]
[1731267360186,0.062234,80265.0,80260.0,0.00013457]
[1731267360385,9.318e-05,80270.0,80260.0,0.03730183]
[1731267360581,0.062232,80268.0,80262.0,0.03716726]
[1731267360780,0.062232,80268.0,80260.0,0.00013457]
[1731267360781,0.062232,80268.0,80261.0,0.03716726]
[1731267360975,0.062232,80268.0,80262.0,0.03716726]
[1731267361177,9.318e-05,80270.0,80262.0,0.03716726]
[1731267361178,0.47962415,80263.0,80262.0,0.03716726]
[1731267361377,0.47962415,80263.0,80260.0,0.00013457]
[1731267361378,0.062236,80262.0,80260.0,0.00013457]
[1731267362688,0.0447,80261.0,80260.0,0.00013457]
[1731267362881,0.0447,80261.0,80245.0,0.04955634]
[1731267362882,0.062248,80247.0,80245.0,0.03709399]
[1731267363081,0.062249,80245.0,80244.0,0.03709399]
[1731267363281,0.062249,80245.0,80240.0,0.09940678]
[1731267363282,0.062252,80242.0,80240.0,0.04985044]
[1731267364793,0.062259,80233.0,80232.0,0.04985541]
[1731267364998,0.062259,80233.0,80226.0,0.03710428]
[1731267364999,0.7155283,80233.0,80226.0,0.03710428]
[1731267365186,0.11882415,80227.0,80219.0,0.03710428]
[1731267365381,0.423067,80223.0,80219.0,0.03710428]
[1731267365589,0.423067,80223.0,80215.0,0.03710428]
[1731267365899,0.797027,80223.0,80216.0,0.03710428]
[1731267366081,0.797027,80223.0,80215.0,0.03710428]
[1731267366392,0.797027,80223.0,80204.0,0.13002643]
[1731267366393,0.062269,80220.0,80204.0,0.068081]
[1731267366592,0.062269,80220.0,80204.0,0.062281]
[1731267366593,0.3608,80212.0,80204.0,0.062281]
[1731267366793,0.3608,80205.0,80200.0,0.06906878]
[1731267367095,0.11882415,80201.0,80194.0,0.09939328]
[1731267367284,0.11882415,80195.0,80190.0,0.39790428]
[1731267367485,0.11882415,80199.0,80190.0,0.3608]
[1731267367691,0.3608,80197.0,80190.0,0.062292]
[1731267367996,0.3608,80197.0,80195.0,0.062288]
[1731267368291,0.00010348,80200.0,80199.0,0.062285]
[1731267368594,0.3608,80221.0,80211.0,0.062276]
[1731267368983,0.3608,80221.0,80204.0,0.062281]
[1731267369183,0.3608,80221.0,80203.0,0.11712]
[1731267369184,0.11882415,80218.0,80203.0,0.11712]
[1731267369483,0.3608,80221.0,80209.0,0.062277]
[1731267369484,0.11882415,80211.0,80209.0,0.062277]
[1731267369683,0.062279,80208.0,80204.0,0.18594516]
[1731267369891,0.3608,80205.0,80190.0,0.03710428]
[1731267370089,0.3608,80205.0,80195.0,0.03710428]
[1731267370289,0.00015296,80210.0,80197.0,0.03710428]
[1731267370494,0.00015296,80210.0,80205.0,0.3608]
[1731267370697,0.00015296,80210.0,80206.0,0.062279]
[1731267371201,0.11882415,80207.0,80205.0,0.3608]
[1731267371495,0.11882415,80207.0,80200.0,0.03710428]
[1731267372001,0.00015296,80210.0,80202.0,0.062282]
[1731267372301,0.00015296,80210.0,80209.0,0.062277]
[1731267373393,0.00015296,80210.0,80209.0,0.11183334]
[1731267373799,0.00015296,80210.0,80209.0,0.062277]
[1731267374187,0.00015296,80210.0,80209.0,0.11183334]
[1731267374594,0.00015296,80210.0,80209.0,0.062277]
[1731267376100,0.47796,80229.0,80209.0,0.30517705]
[1731267376303,0.47796,80229.0,80218.0,0.06227]
[1731267376821,0.47796,80229.0,80219.0,0.062269]
[1731267377006,9.924e-05,80227.0,80222.0,0.062267]
[1731267377317,9.924e-05,80227.0,80221.0,0.03700232]
[1731267377502,0.11892339,80227.0,80223.0,0.03700232]
[1731267377707,0.11892339,80227.0,80224.0,0.03700232]
[1731267378212,0.11892339,80227.0,80220.0,0.03700232]
[1731267378411,0.47962415,80221.0,80218.0,0.03700232]
[1731267378610,0.47962415,80221.0,80217.0,0.03700232]
[1731267378611,0.11882415,80221.0,80217.0,0.03700232]
[1731267378812,0.11892339,80227.0,80218.0,0.03700232]
[1731267379011,0.062267,80223.0,80219.0,0.03700232]
[1731267379208,0.11882415,80221.0,80219.0,0.03700232]
[1731267379402,0.062267,80223.0,80218.0,0.03700232]
[1731267379712,0.062267,80223.0,80220.0,0.03700232]
[1731267380320,0.18118739,80227.0,80220.0,0.03700232]
[1731267380518,0.062265,80225.0,80223.0,0.03700232]
[1731267380710,0.11892339,80227.0,80223.0,0.03700232]
[1731267381013,0.0534,80248.0,80223.0,0.03700232]
[1731267381014,0.0058,80248.0,80226.0,0.3608]
[1731267381209,0.0058,80258.0,80246.0,0.062248]
[1731267381415,0.0058,80258.0,80240.0,0.3608]
[1731267381416,0.06224,80258.0,80247.0,0.03703265]
[1731267381609,0.11882415,80260.0,80244.0,0.03703265]
[1731267381812,0.3608,80262.0,80259.0,0.062238]
[1731267382012,0.062231,80270.0,80259.0,0.062238]
[1731267382013,0.0001417,80261.0,80259.0,0.062238]
[1731267382213,0.0001417,80261.0,80260.0,0.11882415]
[1731267382415,0.3608,80279.0,80268.0,0.062231]
[1731267382616,0.11882415,80277.0,80262.0,0.0370348]
[1731267382810,0.3608,80263.0,80261.0,0.03703186]
[1731267383014,0.11882415,80262.0,80255.0,0.15419186]
[1731267383212,0.11882415,80262.0,80252.0,0.062244]
[1731267383213,0.11882415,80262.0,80253.0,0.03703186]
[1731267383408,0.00014544,80261.0,80253.0,0.03703186]
[1731267383606,0.00014544,80261.0,80255.0,0.03703186]
[1731267384129,0.00014544,80261.0,80260.0,0.3608]
[1731267385013,0.11896959,80261.0,80254.0,0.03704146]
[1731267385206,0.11882415,80255.0,80253.0,0.03704146]
[1731267385422,0.11882415,80255.0,80252.0,0.3608]
[1731267385923,0.062239,80258.0,80251.0,0.00013707]
[1731267386322,0.062239,80258.0,80252.0,0.3608]
[1731267386508,0.04414544,80261.0,80252.0,0.3608]
[1731267387424,0.04414544,80261.0,80252.0,0.423044]
[1731267388127,0.04414544,80261.0,80259.0,0.3608]
[1731267388128,0.00014544,80261.0,80259.0,0.3608]
[1731267388325,0.00014544,80261.0,80259.0,0.423039]
[1731267388520,0.00014544,80261.0,80252.0,0.39948146]
[1731267388521,0.00014544,80261.0,80252.0,0.424684]
[1731267388722,0.00014544,80261.0,80260.0,0.3608]
[1731267390927,0.06238344,80261.0,80252.0,0.423043]
[1731267391227,0.06238344,80261.0,80251.0,0.00013707]
[1731267391228,0.062244,80253.0,80251.0,0.00013707]
[1731267392328,0.062239,80259.0,80251.0,0.00013707]
[1731267393128,0.0444,80260.0,80251.0,0.00013707]
[1731267393730,0.062241,80256.0,80251.0,0.00013707]
[1731267394534,0.062242,80255.0,80251.0,0.00013707]
[1731267395034,0.0444,80260.0,80251.0,0.00013707]
[1731267395227,0.0444,80260.0,80251.0,0.42318107]
[1731267395625,0.00014544,80261.0,80253.0,0.11882415]
[1731267395823,0.00014544,80261.0,80259.0,0.18106215]
[1731267396123,0.00014544,80261.0,80254.0,0.18573068]
[1731267396434,0.00014544,80261.0,80253.0,0.062243]
[1731267396728,0.00014544,80261.0,80257.0,0.06224]
[1731267397126,0.00014544,80261.0,80252.0,0.0473]
[1731267397438,0.00014544,80261.0,80260.0,0.11882415]
[1731267397729,0.00656,80269.0,80268.0,0.062232]
[1731267397935,0.00656,80269.0,80268.0,0.54185615]
[1731267398132,0.00656,80269.0,80268.0,0.3608]
[1731267398331,0.00656,80269.0,80260.0,0.3608]
[1731267398534,0.00011335,80268.0,80260.0,0.45457217]
[1731267399125,0.11882415,80267.0,80260.0,0.3608]
[1731267399427,0.423033,80267.0,80253.0,0.108643]
[1731267399837,0.423033,80267.0,80254.0,0.18639906]
[1731267400146,0.423033,80267.0,80254.0,0.24864106]
[1731267400335,0.04421335,80268.0,80259.0,0.3608]
[1731267400536,0.04421335,80268.0,80260.0,0.062237]
[1731267401338,0.00011335,80268.0,80266.0,0.423033]
[1731267402743,0.00011335,80268.0,80267.0,0.18797832]
[1731267404541,0.00011335,80268.0,80267.0,0.56173832]
[1731267404744,0.00011335,80268.0,80267.0,0.68056247]
[1731267405040,0.0441,80285.0,80268.0,0.062231]
[1731267405246,0.3608,80286.0,80277.0,0.3608]
[1731267405440,0.3608,80286.0,80283.0,0.06222]
[1731267405845,0.062215,80290.0,80278.0,0.062224]
[1731267406041,0.3608,80289.0,80278.0,0.062224]
[1731267406339,0.36093764,80289.0,80277.0,0.3608]
[1731267406537,0.36093764,80289.0,80282.0,0.062221]
[1731267407250,0.36093764,80289.0,80277.0,0.3608]
[1731267407446,0.36093764,80289.0,80277.0,0.39206888]
[1731267407750,0.36093764,80289.0,80279.0,0.062223]
[1731267407947,0.36093764,80289.0,80280.0,0.062222]
[1731267408142,0.36093764,80289.0,80285.0,0.11882415]
[1731267408445,0.36093764,80289.0,80281.0,0.0434]
[1731267409245,0.36093764,80289.0,80282.0,0.06222]
[1731267409647,0.00013764,80289.0,80288.0,0.3608]
[1731267411147,0.00013764,80289.0,80288.0,0.54849242]
[1731267411338,0.00013764,80289.0,80288.0,0.92213242]
[1731267411548,0.00187033,80294.0,80293.0,0.062212]
[1731267411745,0.00187033,80294.0,80293.0,0.18103615]
[1731267412047,0.00187033,80294.0,80293.0,0.36886623]
[1731267412241,0.0474,80308.0,80293.0,0.68029423]
[1731267412437,0.0474,80308.0,80304.0,0.11882415]
[1731267412644,0.0001318,80307.0,80304.0,0.11882415]
[1731267413043,0.0001318,80307.0,80305.0,0.062203]
[1731267414852,0.0001318,80307.0,80306.0,0.18663695]
[1731267415247,0.0001318,80307.0,80306.0,0.23153695]
[1731267415951,0.0471,80328.0,80306.0,0.23153695]
[1731267415952,0.0471,80328.0,80306.0,0.60509695]
[1731267416160,0.0471,80328.0,80307.0,0.435761]
[1731267416348,0.0471,80328.0,80321.0,0.062191]
[1731267416747,0.0471,80328.0,80318.0,0.11882415]
[1731267416952,0.00012504,80327.0,80316.0,0.062194]
[1731267417154,0.062188,80324.0,80315.0,0.3608]
[1731267417453,0.062188,80324.0,80316.0,0.18729686]
[1731267417849,0.00012504,80327.0,80317.0,0.062193]
[1731267418243,0.18101715,80318.0,80306.0,0.03101219]
[1731267418449,0.11882415,80312.0,80306.0,0.03101219]
[1731267418649,0.062197,80314.0,80306.0,0.03101219]
[1731267419358,0.062201,80308.0,80306.0,0.00013297]
[1731267419654,0.0451,80307.0,80306.0,0.00013297]
[1731267421852,0.3608,80315.0,80306.0,0.00013297]
[1731267422057,0.3608,80315.0,80307.0,0.062201]
[1731267422252,0.062198,80312.0,80306.0,0.00013297]
[1731267423050,0.3608,80315.0,80306.0,0.00013297]
[1731267423051,0.0622,80310.0,80306.0,0.00013297]
[1731267423252,0.423001,80308.0,80306.0,0.00013297]
[1731267423660,0.3608,80308.0,80289.0,0.0058]
[1731267423850,0.3608,80308.0,80285.0,0.0058]
[1731267423851,0.11882415,80292.0,80285.0,0.0058]
[1731267424052,0.3608,80299.0,80280.0,0.3608]
[1731267424053,0.0452,80291.0,80280.0,0.39217769]
[1731267424251,0.0452,80291.0,80286.0,0.18680596]
[1731267424456,0.0452,80291.0,80285.0,0.18680596]
[1731267424646,0.0452,80291.0,80282.0,0.18680596]
[1731267424849,0.0452,80291.0,80287.0,0.18691635]
[1731267425054,0.0452,80291.0,80287.0,0.00011039]
[1731267427853,0.062216,80289.0,80287.0,0.00011039]
[1731267429158,0.062216,80289.0,80271.0,0.0058]
[1731267429159,0.49046423,80288.0,80271.0,0.0058]
[1731267429363,0.11882415,80276.0,80267.0,0.39784146]
[1731267429667,0.11882415,80276.0,80269.0,0.062231]
[1731267429668,0.062226,80276.0,80269.0,0.062231]
[1731267430058,0.062228,80274.0,80267.0,0.3608]
[1731267430366,0.0446,80278.0,80269.0,0.06223]
[1731267430668,0.0446,80278.0,80267.0,0.39282879]
[1731267430669,0.0446,80278.0,80271.0,0.062229]
[1731267431960,0.423024,80279.0,80267.0,0.39446879]
[1731267431961,0.3608,80279.0,80267.0,0.39446879]
[1731267432159,0.3608,80279.0,80278.0,0.11882415]
[1731267432354,0.00010423,80288.0,80278.0,0.18104815]
[1731267432659,0.00010423,80288.0,80279.0,0.106323]
[1731267432963,0.00010423,80288.0,80280.0,0.18673502]
[1731267434556,0.00010423,80288.0,80286.0,0.062218]
[1731267434957,0.00010423,80288.0,80287.0,0.18621194]
[1731267436976,0.00010423,80288.0,80284.0,0.3608]
[1731267436977,0.06232023,80288.0,80284.0,0.3608]
[1731267437174,0.00010423,80288.0,80284.0,0.3608]
[1731267438067,0.00010423,80288.0,80286.0,0.18104115]
[1731267438368,0.03164769,80303.0,80295.0,0.06221]
[1731267438669,0.4058,80305.0,80297.0,0.062209]
[1731267439165,0.4058,80305.0,80298.0,0.062208]
[1731267439371,9.27e-05,80304.0,80293.0,0.062212]
[1731267439572,0.11891685,80304.0,80292.0,0.18740283]
[1731267439865,0.11891685,80304.0,80284.0,0.0058]
[1731267439866,0.062212,80294.0,80284.0,0.0058]
[1731267440071,0.062212,80294.0,80281.0,0.062221]
[1731267440459,0.11882415,80291.0,80284.0,0.18666263]
[1731267440662,0.062218,80286.0,80280.0,0.02491357]
[1731267440863,0.3608,80289.0,80281.0,0.18666263]
[1731267441063,0.3608,80289.0,80280.0,0.02491357]
[1731267441575,0.3608,80289.0,80281.0,0.1870698]
[1731267441766,0.47962415,80297.0,80282.0,0.06222]
[1731267441965,0.062212,80294.0,80282.0,0.06222]
[1731267442665,0.3608,80290.0,80282.0,0.06222]
[1731267442867,0.062212,80294.0,80283.0,0.06222]
[1731267443974,0.062213,80292.0,80280.0,0.02491357]
[1731267444365,0.062213,80292.0,80281.0,0.24989599]
[1731267444567,0.062213,80292.0,80282.0,0.062221]
[1731267444876,0.47962415,80297.0,80280.0,0.02491357]
[1731267445073,0.3608,80297.0,80285.0,0.11882415]
[1731267445280,0.3608,80300.0,80291.0,0.47962415]
[1731267445576,0.3608,80300.0,80298.0,0.062208]
[1731267446369,9.27e-05,80304.0,80303.0,0.062205]
[1731267446869,9.27e-05,80304.0,80303.0,0.24789345]
[1731267448170,9.27e-05,80304.0,80303.0,0.18568845]
[1731267448570,9.27e-05,80304.0,80303.0,0.03188415]
[1731267448766,9.27e-05,80304.0,80299.0,0.0938]
[1731267448970,9.27e-05,80304.0,80298.0,0.3608]
[1731267449175,0.11882415,80302.0,80298.0,0.3608]
[1731267449679,0.0622967,80304.0,80298.0,0.3608]
[1731267450565,9.27e-05,80304.0,80298.0,0.3608]
[1731267452576,9.27e-05,80304.0,80298.0,0.423008]
[1731267452783,0.00211377,80301.0,80298.0,0.3608]
[1731267453174,0.06431977,80301.0,80298.0,0.3608]
[1731267453681,0.06431977,80301.0,80295.0,0.0310322]
[1731267453881,9.27e-05,80304.0,80293.0,0.062212]
[1731267453882,0.00211377,80298.0,80293.0,0.062212]
[1731267454074,0.00211377,80298.0,80286.0,0.11664]
[1731267454075,0.11882415,80295.0,80286.0,0.11664]
[1731267454272,0.11882415,80295.0,80285.0,0.0936]
[1731267454273,0.062212,80293.0,80285.0,0.0936]
[1731267454471,0.00211377,80298.0,80286.0,0.18781788]
[1731267454678,0.06432177,80298.0,80290.0,0.062214]
[1731267454878,0.00211377,80294.0,80290.0,0.062214]
[1731267455271,0.00211377,80294.0,80285.0,0.12578995]
[1731267455479,0.062212,80293.0,80285.0,0.12578995]
[1731267455670,0.062212,80293.0,80286.0,0.18802811]
[1731267455874,0.00211377,80290.0,80288.0,0.062216]
[1731267456075,0.00211377,80290.0,80288.0,0.04562927]
[1731267456769,0.00211377,80290.0,80285.0,0.12578995]
[1731267456973,0.00211377,80288.0,80285.0,0.21292141]
[1731267457281,0.00211377,80288.0,80286.0,0.18791558]
[1731267457884,0.00211377,80287.0,80286.0,0.18791558]
[1731267459182,0.00211377,80287.0,80286.0,0.68041973]
[1731267459377,0.12462415,80312.0,80303.0,0.062205]
[1731267459378,0.0058,80312.0,80303.0,0.062205]
[1731267459571,0.0058,80332.0,80312.0,0.062197]
[1731267459777,0.3608,80345.0,80330.0,0.3608]
[1731267459778,0.03819312,80331.0,80330.0,0.3608]
[1731267459977,0.3608,80345.0,80337.0,0.062178]
[1731267460174,0.3608,80345.0,80341.0,0.062175]
[1731267460380,0.00014285,80346.0,80341.0,0.06232116]
[1731267460682,0.00014285,80346.0,80341.0,0.24852461]
[1731267460881,0.00014285,80346.0,80341.0,0.42696898]
[1731267461977,0.00014285,80346.0,80341.0,0.45812327]
[1731267462397,0.00357743,80342.0,80341.0,0.45812327]
[1731267462590,0.00014285,80346.0,80341.0,0.76934827]
[1731267462881,0.00014285,80346.0,80345.0,0.062172]
[1731267463187,0.00014285,80346.0,80345.0,0.62106307]
[1731267463676,0.3608,80364.0,80345.0,0.55889107]
[1731267463987,0.3608,80364.0,80356.0,0.17844437]
[1731267464792,0.3608,80364.0,80357.0,0.062162]
[1731267465987,0.3608,80364.0,80356.0,0.17844437]
[1731267466187,0.3608,80364.0,80359.0,0.062161]
[1731267466580,0.422953,80370.0,80352.0,0.178766]
[1731267466979,0.422953,80370.0,80353.0,0.24979912]
[1731267467175,0.3608,80370.0,80353.0,0.24979912]
[1731267467379,0.062154,80369.0,80355.0,0.062164]
[1731267468383,0.3608,80363.0,80355.0,0.062164]
[1731267471890,0.3608,80363.0,80352.0,0.14838937]
[1731267471891,0.3608,80370.0,80357.0,0.3608]
[1731267472086,0.3608,80370.0,80359.0,0.062161]
[1731267473091,0.062155,80368.0,80357.0,0.3608]
[1731267474699,0.3608,80360.0,80355.0,0.062164]
[1731267475492,0.3608,80360.0,80352.0,0.14838937]
[1731267475803,0.3608,80370.0,80368.0,0.062154]
[1731267475990,0.03178308,80382.0,80369.0,0.17844437]
[1731267476291,0.0452,80383.0,80371.0,0.062152]
[1731267476489,0.107343,80383.0,80371.0,0.062152]
[1731267476686,0.0452,80383.0,80369.0,0.17844437]
[1731267476892,0.4068,80385.0,80376.0,0.17844437]
[1731267477085,0.4068,80385.0,80384.0,0.17844437]
[1731267477086,0.3608,80385.0,80384.0,0.17844437]
[1731267477901,0.062134,80394.0,80384.0,0.17844437]
[1731267478398,0.39223315,80395.0,80384.0,0.24058537]
[1731267478702,0.3608,80395.0,80384.0,0.27232431]
[1731267479889,0.422934,80395.0,80384.0,0.27232431]
[1731267480797,0.422934,80395.0,80390.0,0.11884525]
[1731267481191,0.046,80396.0,80390.0,0.18098225]
[1731267481397,0.046,80396.0,80390.0,0.11884525]
[1731267481594,0.046,80396.0,80387.0,0.062139]
[1731267481800,0.046,80396.0,80376.0,0.0058]
[1731267481801,0.062141,80386.0,80376.0,0.0058]
[1731267481993,0.3608,80389.0,80371.0,0.11884525]
[1731267481994,0.062142,80384.0,80371.0,0.11884525]
[1731267482190,0.3608,80380.0,80377.0,0.30496248]
[1731267482389,0.3608,80380.0,80376.0,0.18611723]
[1731267482695,0.3608,80380.0,80367.0,0.3608]
[1731267482696,0.3608,80380.0,80377.0,0.11884525]
[1731267483789,0.3608,80381.0,80377.0,0.11884525]
[1731267485794,0.062143,80382.0,80377.0,0.11884525]
[1731267485993,0.3608,80381.0,80377.0,0.11884525]
[1731267486195,0.422943,80382.0,80377.0,0.11884525]
[1731267487093,0.3608,80382.0,80378.0,0.02488174]
[1731267487295,0.3608,80382.0,80378.0,0.21268189]
[1731267487501,0.06214,80387.0,80378.0,0.21268189]
[1731267487707,0.3608,80382.0,80378.0,0.21268189]
[1731267487899,0.3608,80382.0,80378.0,0.02488174]
[1731267487900,0.062145,80380.0,80378.0,0.02488174]
[1731267488701,0.3608,80382.0,80378.0,0.02488174]
[1731267489397,0.062145,80380.0,80378.0,0.02488174]
[1731267492007,0.062149,80375.0,80370.0,0.03704146]
[1731267492310,0.062153,80370.0,80365.0,0.02488174]
[1731267492912,0.062153,80370.0,80366.0,0.18614756]
[1731267493298,0.0446,80374.0,80366.0,0.24830356]
[1731267493511,0.10675,80374.0,80366.0,0.24830356]
[1731267493811,0.0446,80374.0,80366.0,0.18614756]
[1731267494104,0.062154,80369.0,80365.0,0.02488174]
[1731267494504,0.062156,80367.0,80365.0,0.02488174]
[1731267496417,0.0446,80374.0,80365.0,0.02488174]
[1731267496711,0.062153,80369.0,80365.0,0.02488174]
[1731267498004,0.3608,80367.0,80365.0,0.02488174]
[1731267498207,0.062156,80366.0,80365.0,0.02488174]
[1731267501717,0.422956,80366.0,80365.0,0.02488174]
[1731267501917,0.062153,80369.0,80365.0,0.02488174]
[1731267502113,0.0446,80374.0,80365.0,0.02488174]
[1731267502416,0.422956,80366.0,80365.0,0.02488174]
[1731267504023,0.3608,80366.0,80365.0,0.02488174]
[1731267504210,0.3608,80366.0,80365.0,0.0619232]
[1731267504412,0.3608,80366.0,80365.0,0.02488174]
[1731267505815,0.062156,80367.0,80365.0,0.02488174]
[1731267506518,0.062156,80366.0,80365.0,0.02488174]
[1731267506712,0.06216,80361.0,80360.0,0.03153126]
[1731267506907,0.3608,80361.0,80353.0,0.03723621]
[1731267507108,0.422965,80354.0,80353.0,0.03723621]
[1731267507312,0.3608,80354.0,80346.0,0.03723621]
[1731267507614,0.3608,80354.0,80348.0,0.02489111]
[1731267508511,0.062168,80351.0,80348.0,0.02489111]
[1731267509725,0.3608,80354.0,80344.0,0.15091927]
[1731267509923,0.062172,80346.0,80344.0,0.03207402]
[1731267510111,0.062172,80346.0,80343.0,0.0457]
[1731267510318,0.062173,80344.0,80341.0,0.00014616]
[1731267510620,0.062173,80344.0,80343.0,0.02489181]
[1731267511926,0.0447,80353.0,80343.0,0.02489181]
[1731267511927,0.06217,80348.0,80343.0,0.02489181]
[1731267513921,0.062171,80347.0,80343.0,0.02489181]
[1731267514523,0.422971,80347.0,80343.0,0.02489181]
[1731267515614,0.062171,80346.0,80343.0,0.02489181]
[1731267516825,0.3608,80347.0,80343.0,0.02489181]
[1731267517316,0.3608,80347.0,80345.0,0.062172]
[1731267517628,0.0461,80367.0,80354.0,0.04510669]
[1731267517629,0.3608,80356.0,80354.0,0.04510669]